fUSD/lending_fUSD_20260519
["ID","MTS","AMOUNT","RATE_DAILY","PERIOD"]
[422614992,1779158961000,-534.02111804,0.00011227,2]
[422615010,1779159032000,-208.58623393,0.00013007,2]
[422615016,1779159032000,-1809.3739,0.00013468,2]
[422615018,1779159032000,-5039.7642,0.00013568,2]
[422615017,1779159032000,-2998.91,0.00013555,2]
[422615007,1779159032000,-2435.78,0.00012993,2]
[422615021,1779159032000,-500.0,0.00013698,2]
[422615019,1779159032000,-500.0,0.00013644,2]
[422615030,1779159032000,-291.80573686,0.00013895,2]
[422615025,1779159032000,-500.0,0.00013698,2]
[422615022,1779159032000,-500.0,0.00013698,2]
[422615026,1779159032000,-500.0,0.00013698,2]
[422615029,1779159032000,-2998.91,0.00013877,2]
[422615024,1779159032000,-500.0,0.00013698,2]
[422615023,1779159032000,-500.0,0.00013698,2]
[422615031,1779159032000,-1166.05572448,0.00013895,2]
[422615012,1779159032000,-298.79,0.00013105,2]
[422615020,1779159032000,-150.0,0.00013697,2]
[422615028,1779159032000,-200.0,0.00013699,2]
[422615069,1779159032000,-500.0,0.00014207,2]
[422615013,1779159032000,-998.93,0.0001323,2]
[422615027,1779159032000,-168.02,0.00013699,2]
[422614995,1779159032000,-150.0,0.00012125,2]
[422615005,1779159032000,-182.0,0.00012958,2]
[422614994,1779159032000,-1266.47888196,0.00011227,2]
[422615003,1779159032000,-2998.91,0.00012909,2]
[422615004,1779159032000,-192.9,0.00012919,2]
[422615000,1779159032000,-200.0,0.00012812,2]
[422614998,1779159032000,-1259.21,0.00012757,2]
[422615011,1779159032000,-10653.18,0.00013065,2]
[422614996,1779159032000,-193.45225101,0.00012349,2]
[422615002,1779159032000,-1200.0,0.00012908,2]
[422614997,1779159032000,-254.80910455,0.00012349,2]
[422615001,1779159032000,-2000.0,0.00012907,2]
[422615006,1779159032000,-153.67,0.00012959,2]
[422615014,1779159032000,-2998.91,0.00013232,2]
[422615009,1779159032000,-160.0,0.00013007,2]
[422615008,1779159032000,-215.15951567,0.00013007,2]
[422615015,1779159032000,-225.96,0.00013458,2]
[422614999,1779159032000,-500.0,0.00012801,2]
[422615033,1779159032000,-250.0,0.00014,2]
[422615084,1779159032000,-146899.63262167,0.00014208,2]
[422615032,1779159032000,-500.0,0.00014,2]
[422615070,1779159032000,-500.0,0.00014207,2]
[422615073,1779159032000,-500.0,0.00014207,2]
[422615072,1779159032000,-500.0,0.00014207,2]
[422615075,1779159032000,-325.57223875,0.00014207,2]
[422615076,1779159032000,-500.0,0.00014207,2]
[422615077,1779159032000,-500.0,0.00014207,2]
[422615079,1779159032000,-500.0,0.00014207,2]
[422615071,1779159032000,-500.0,0.00014207,2]
[422615074,1779159032000,-286.26613522,0.00014207,2]
[422615082,1779159032000,-209.60104111,0.00014208,2]
[422615081,1779159032000,-500.0,0.00014208,2]
[422615086,1779159032000,-4521.58924551,0.00014208,2]
[422615083,1779159032000,-575.59111792,0.00014208,2]
[422615085,1779159032000,-4622.91593204,0.00014208,2]
[422615088,1779159032000,-516.80872837,0.00014208,2]
[422615087,1779159032000,-2295.0,0.00014208,2]
[422615080,1779159032000,-176.91879546,0.00014207,2]
[422615066,1779159032000,-252.74113637,0.00014207,2]
[422615078,1779159032000,-362.897992,0.00014207,2]
[422615061,1779159032000,-345.30358111,0.00014198,2]
[422615067,1779159032000,-500.0,0.00014207,2]
[422615041,1779159032000,-186.43099882,0.00014108,2]
[422615050,1779159032000,-2500.0,0.00014108,2]
[422615034,1779159032000,-349.19976428,0.00014,2]
[422615036,1779159032000,-180.50477087,0.00014078,2]
[422615046,1779159032000,-15012.3235,0.00014108,2]
[422615042,1779159032000,-5093.68117683,0.00014108,2]
[422615035,1779159032000,-6803.7659,0.00014008,2]
[422615039,1779159032000,-202.13790664,0.00014107,2]
[422615044,1779159032000,-4170.3749,0.00014108,2]
[422615048,1779159032000,-5000.0,0.00014108,2]
[422615052,1779159032000,-504.58013469,0.00014108,2]
[422615054,1779159032000,-13440.82921607,0.00014112,2]
[422615063,1779159032000,-1680.0,0.00014199,2]
[422615064,1779159032000,-2998.91,0.000142,2]
[422615056,1779159032000,-8060.13764241,0.00014137,2]
[422615058,1779159032000,-2509.14122645,0.00014191,2]
[422615065,1779159032000,-1109.5328,0.00014207,2]
[422615068,1779159032000,-500.0,0.00014207,2]
[422615093,1779159038000,-593.79158774,0.00014208,2]
[422615095,1779159038000,-953.99333751,0.00014208,2]
[422615094,1779159038000,-3424.91065736,0.00014208,2]
[422615096,1779159038000,-2528.48506424,0.00014208,2]
[422615098,1779159038000,-176.86446494,0.00014237,2]
[422615100,1779159038000,-405.2856717,0.00014246,2]
[422615099,1779159038000,-176.86446495,0.00014237,2]
[422615097,1779159038000,-1333642.87282556,0.00014208,2]
[422615102,1779159038000,-111198.7105449,0.00014247,2]
[422615101,1779159038000,-6494.0454292,0.00014247,2]
[422615103,1779159038000,-3684.5015451,0.00014247,2]
[422615107,1779159038000,-42531.42214407,0.00014247,2]
[422615105,1779159038000,-357630.17282681,0.00014247,2]
[422615106,1779159038000,-547.4565743,0.00014247,2]
[422615104,1779159038000,-3446.0216791,0.00014247,2]
[422615112,1779159040000,-338.004,0.00014247,2]
[422615111,1779159040000,-2193.198547,0.00014247,2]
[422615110,1779159040000,-305.11934148,0.00014247,2]
[422615113,1779159041000,-794.26054725,0.00014247,2]
[422615121,1779159043000,-378.77532849,0.00014247,2]
[422615120,1779159043000,-1252.00392271,0.00014247,2]
[422615119,1779159043000,-1197.29978629,0.00014247,2]
[422615122,1779159044000,-977.0630392,0.00014247,2]
[422615124,1779159044000,-2121.80929683,0.00014247,2]
[422615123,1779159044000,-46420.14980043,0.00014247,2]
[422615127,1779159046000,-3921.84167345,0.00014247,2]
[422615128,1779159046000,-1644.16589169,0.00014247,2]
[422615129,1779159047000,-2510.26504706,0.00014247,2]
[422615183,1779159932000,150.57250831,4.1e-06,5]
[422615184,1779160143000,1000.0,0.00030135,120]
[422615185,1779160157000,-353.33567978,0.000107,2]
[422615190,1779160231000,-684.47829343,0.000107,2]
[422615189,1779160231000,-3245.08498624,0.000107,2]
[422615192,1779160231000,-965.61194919,0.000107,2]
[422615191,1779160231000,-355.00000001,0.000107,2]
[422615227,1779160237000,-212.95636389,0.00012164,2]
[422615216,1779160237000,-382.40150923,0.000107,2]
[422615217,1779160237000,-1895.6426255,0.000107,2]
[422615218,1779160237000,-206.03457595,0.00011127,2]
[422615229,1779160237000,-500.0,0.00012548,2]
[422615221,1779160237000,-250.0,0.0001177,2]
[422615220,1779160237000,-1200.0,0.00011769,2]
[422615226,1779160237000,-2000.0,0.00012083,2]
[422615224,1779160237000,-386.89,0.00012044,2]
[422615222,1779160237000,-213.50942329,0.0001177,2]
[422615219,1779160237000,-246.96,0.00011227,2]
[422615225,1779160237000,-300.0,0.00012082,2]
[422615223,1779160237000,-622.77900118,0.00011921,2]
[422615237,1779160237000,-22148.7675,0.0001293,2]
[422615236,1779160237000,-4168.7808,0.0001293,2]
[422615234,1779160237000,-5000.0,0.0001293,2]
[422615238,1779160237000,-897.96081268,0.0001293,2]
[422615232,1779160237000,-1051.19707315,0.0001292,2]
[422615233,1779160237000,-2259.5031,0.0001293,2]
[422615235,1779160237000,-2500000.0,0.0001293,2]
[422615230,1779160237000,-500.0,0.0001274,2]
[422615228,1779160237000,-850.97363009,0.00012164,2]
[422615231,1779160237000,-1143.819,0.00012867,2]
[422615282,1779160238000,-500.0,0.00013029,2]
[422615287,1779160238000,-500.0,0.00013029,2]
[422615289,1779160238000,-250.0,0.00013029,2]
[422615286,1779160238000,-500.0,0.00013029,2]
[422615280,1779160238000,-500.0,0.00013029,2]
[422615277,1779160238000,-500.0,0.00013029,2]
[422615279,1779160238000,-556.49980585,0.00013029,2]
[422615278,1779160238000,-500.0,0.00013029,2]
[422615276,1779160238000,-500.0,0.00013029,2]
[422615288,1779160238000,-500.0,0.00013029,2]
[422615283,1779160238000,-500.0,0.00013029,2]
[422615281,1779160238000,-500.0,0.00013029,2]
[422615294,1779160238000,-1500000.0,0.0001303,2]
[422615290,1779160238000,-500.0,0.00013029,2]
[422615296,1779160238000,-829.86905816,0.0001303,2]
[422615292,1779160238000,-500.0,0.00013029,2]
[422615295,1779160238000,-259.94205451,0.0001303,2]
[422615291,1779160238000,-500.0,0.00013029,2]
[422615297,1779160238000,-6049.0,0.00013068,2]
[422615310,1779160238000,-150.0,0.00013488,2]
[422615298,1779160238000,-347.3877186,0.00013098,2]
[422615305,1779160238000,-200.0,0.0001335,2]
[422615304,1779160238000,-208.58623393,0.00013348,2]
[422615308,1779160238000,-308.0,0.00013452,2]
[422615300,1779160238000,-7508.66822284,0.00013211,2]
[422615299,1779160238000,-17771.23867773,0.00013168,2]
[422615275,1779160238000,-500.0,0.00013029,2]
[422615293,1779160238000,-947.9532134,0.00013029,3]
[422615284,1779160238000,-500.0,0.00013029,2]
[422615303,1779160238000,-215.15951567,0.00013348,2]
[422615274,1779160238000,-500.0,0.00013029,2]
[422615239,1779160238000,-7508.66822286,0.0001293,2]
[422615241,1779160238000,-1680.0,0.00012946,2]
[422615240,1779160238000,-8780.27114524,0.0001293,2]
[422615243,1779160238000,-150.0,0.00012951,2]
[422615253,1779160238000,-500.0,0.00013029,2]
[422615255,1779160238000,-500.0,0.00013029,2]
[422615257,1779160238000,-500.0,0.00013029,2]
[422615259,1779160238000,-500.0,0.00013029,2]
[422615245,1779160238000,-167.4,0.00013008,2]
[422615260,1779160238000,-500.0,0.00013029,2]
[422615246,1779160238000,-500.0,0.00013014,2]
[422615247,1779160238000,-1051.19707315,0.0001302,2]
[422615249,1779160238000,-1002.16355448,0.00013029,2]
[422615250,1779160238000,-500.0,0.00013029,2]
[422615244,1779160238000,-17771.23867775,0.00012952,2]
[422615261,1779160238000,-500.0,0.00013029,2]
[422615263,1779160238000,-500.0,0.00013029,2]
[422615262,1779160238000,-500.0,0.00013029,2]
[422615266,1779160238000,-500.0,0.00013029,2]
[422615269,1779160238000,-500.0,0.00013029,2]
[422615271,1779160238000,-500.0,0.00013029,2]
[422615272,1779160238000,-500.0,0.00013029,2]
[422615270,1779160238000,-500.0,0.00013029,2]
[422615265,1779160238000,-500.0,0.00013029,2]
[422615267,1779160238000,-500.0,0.00013029,2]
[422615264,1779160238000,-500.0,0.00013029,2]
[422615273,1779160238000,-500.0,0.00013029,2]
[422615285,1779160238000,-500.0,0.00013029,2]
[422615306,1779160238000,-17771.23867773,0.00013385,2]
[422615248,1779160238000,-1000.0,0.00013028,2]
[422615309,1779160238000,-150.0,0.00013488,2]
[422615345,1779160238000,-500.0,0.00013698,2]
[422615340,1779160238000,-500.0,0.00013698,2]
[422615339,1779160238000,-500.0,0.00013698,2]
[422615344,1779160238000,-500.0,0.00013698,2]
[422615343,1779160238000,-500.0,0.00013698,2]
[422615341,1779160238000,-504.85547194,0.00013698,2]
[422615335,1779160238000,-500.0,0.00013698,2]
[422615349,1779160238000,-500.0,0.00013698,2]
[422615360,1779160238000,-166.65,0.00013698,2]
[422615348,1779160238000,-500.0,0.00013698,2]
[422615350,1779160238000,-500.0,0.00013698,2]
[422615359,1779160238000,-500.0,0.00013698,2]
[422615367,1779160238000,-500.0,0.00013698,2]
[422615351,1779160238000,-500.0,0.00013698,2]
[422615352,1779160238000,-500.0,0.00013698,2]
[422615354,1779160238000,-500.0,0.00013698,2]
[422615353,1779160238000,-500.0,0.00013698,2]
[422615355,1779160238000,-500.0,0.00013698,2]
[422615356,1779160238000,-500.0,0.00013698,2]
[422615358,1779160238000,-500.0,0.00013698,2]
[422615357,1779160238000,-500.0,0.00013698,2]
[422615362,1779160238000,-500.0,0.00013698,2]
[422615361,1779160238000,-500.0,0.00013698,2]
[422615364,1779160238000,-500.0,0.00013698,2]
[422615366,1779160238000,-500.0,0.00013698,2]
[422615363,1779160238000,-500.0,0.00013698,2]
[422615301,1779160238000,-420.0,0.00013263,2]
[422615342,1779160238000,-500.0,0.00013698,2]
[422615338,1779160238000,-500.0,0.00013698,2]
[422615365,1779160238000,-500.0,0.00013698,2]
[422615347,1779160238000,-500.0,0.00013698,2]
[422615337,1779160238000,-500.0,0.00013698,2]
[422615302,1779160238000,-500.0,0.00013303,2]
[422615307,1779160238000,-164.04,0.00013428,2]
[422615312,1779160238000,-150.0,0.00013488,2]
[422615318,1779160238000,-150.0,0.00013567,2]
[422615313,1779160238000,-150.0,0.00013488,2]
[422615319,1779160238000,-150.0,0.00013585,2]
[422615316,1779160238000,-151.72,0.00013531,2]
[422615317,1779160238000,-150.0,0.00013553,2]
[422615314,1779160238000,-7508.66822284,0.00013493,2]
[422615322,1779160238000,-150.0,0.00013618,2]
[422615315,1779160238000,-150.0,0.0001352,2]
[422615321,1779160238000,-17771.23867773,0.00013601,2]
[422615320,1779160238000,-2000.0,0.00013594,2]
[422615311,1779160238000,-150.0,0.00013488,2]
[422615324,1779160238000,-150.0,0.00013651,2]
[422615334,1779160238000,-500.0,0.00013698,2]
[422615336,1779160238000,-502.26457944,0.00013698,2]
[422615330,1779160238000,-500.0,0.00013698,2]
[422615328,1779160238000,-500.0,0.00013698,2]
[422615332,1779160238000,-500.0,0.00013698,2]
[422615331,1779160238000,-529.13070814,0.00013698,2]
[422615329,1779160238000,-209.51466794,0.00013698,2]
[422615323,1779160238000,-150.0,0.00013645,2]
[422615325,1779160238000,-150.0,0.00013654,2]
[422615326,1779160238000,-150.0,0.00013683,2]
[422615346,1779160238000,-500.0,0.00013698,2]
[422615327,1779160238000,-500.0,0.00013698,2]
[422615333,1779160238000,-500.0,0.00013698,2]
[422615406,1779160239000,-150.0,0.00013879,2]
[422615396,1779160239000,-150.0,0.00013716,2]
[422615400,1779160239000,-150.0,0.00013781,2]
[422615402,1779160239000,-150.0,0.00013813,2]
[422615412,1779160239000,-874.379879,0.00013918,2]
[422615401,1779160239000,-150.0,0.00013803,2]
[422615407,1779160239000,-150.0,0.00013882,2]
[422615403,1779160239000,-17771.23867773,0.00013818,2]
[422615409,1779160239000,-897.96081266,0.00013915,2]
[422615398,1779160239000,-150.0,0.00013748,2]
[422615393,1779160239000,-166.66,0.00013699,2]
[422615415,1779160239000,-538.700084,0.00013918,2]
[422615410,1779160239000,-8780.27114524,0.00013915,2]
[422615411,1779160239000,-150.0,0.00013916,2]
[422615404,1779160239000,-150.0,0.00013821,2]
[422615408,1779160239000,-150.0,0.00013911,2]
[422615414,1779160239000,-717.960789,0.00013918,2]
[422615413,1779160239000,-262.389949,0.00013918,2]
[422615416,1779160239000,-275.58603,0.00013918,2]
[422615423,1779160239000,-1000.0,0.00014014,2]
[422615422,1779160239000,-150.0,0.00014009,2]
[422615419,1779160239000,-150.0,0.00013961,2]
[422615390,1779160239000,-500.0,0.00013698,2]
[422615420,1779160239000,-150.0,0.00013976,2]
[422615405,1779160239000,-150.0,0.00013846,2]
[422615392,1779160239000,-200.0,0.00013699,2]
[422615381,1779160239000,-500.0,0.00013698,2]
[422615394,1779160239000,-1268.88,0.000137,2]
[422615418,1779160239000,-150.0,0.00013944,2]
[422615369,1779160239000,-500.0,0.00013698,2]
[422615371,1779160239000,-500.0,0.00013698,2]
[422615368,1779160239000,-500.0,0.00013698,2]
[422615370,1779160239000,-500.0,0.00013698,2]
[422615372,1779160239000,-500.0,0.00013698,2]
[422615373,1779160239000,-500.0,0.00013698,2]
[422615375,1779160239000,-500.0,0.00013698,2]
[422615374,1779160239000,-500.0,0.00013698,2]
[422615377,1779160239000,-500.0,0.00013698,2]
[422615376,1779160239000,-500.0,0.00013698,2]
[422615379,1779160239000,-580.58046492,0.00013698,2]
[422615378,1779160239000,-500.0,0.00013698,2]
[422615380,1779160239000,-500.0,0.00013698,2]
[422615382,1779160239000,-500.0,0.00013698,2]
[422615383,1779160239000,-500.0,0.00013698,2]
[422615384,1779160239000,-368.28908522,0.00013698,2]
[422615388,1779160239000,-500.0,0.00013698,2]
[422615387,1779160239000,-500.0,0.00013698,2]
[422615386,1779160239000,-500.0,0.00013698,2]
[422615385,1779160239000,-500.0,0.00013698,2]
[422615389,1779160239000,-500.0,0.00013698,2]
[422615395,1779160239000,-150.0,0.00013702,2]
[422615399,1779160239000,-7508.66822284,0.00013774,2]
[422615391,1779160239000,-500.0,0.00013698,2]
[422615397,1779160239000,-150.0,0.00013724,2]
[422615417,1779160239000,-652.227272,0.00013918,2]
[422615424,1779160239000,-17771.23867773,0.00014034,2]
[422615425,1779160239000,-150.0,0.0001404,2]
[422615450,1779160239000,-150.0,0.00014198,2]
[422615454,1779160239000,-5893.2598718,0.00014202,2]
[422615456,1779160239000,-7335.9169822,0.00014202,2]
[422615460,1779160239000,-167.38968689,0.00014202,2]
[422615459,1779160239000,-1212393.0237069,0.00014202,2]
[422615458,1779160239000,-165.93241,0.00014202,2]
[422615455,1779160239000,-25233.6758881,0.00014202,2]
[422615457,1779160239000,-720889.2719205,0.00014202,2]
[422615464,1779160239000,-335.169153,0.00014202,2]
[422615463,1779160239000,-335.169153,0.00014202,2]
[422615471,1779160239000,-151.0,0.00014202,2]
[422615465,1779160239000,-335.169153,0.00014202,2]
[422615467,1779160239000,-335.169153,0.00014202,2]
[422615468,1779160239000,-335.169153,0.00014202,2]
[422615466,1779160239000,-335.169153,0.00014202,2]
[422615469,1779160239000,-151.0,0.00014202,2]
[422615472,1779160239000,-151.0,0.00014202,2]
[422615470,1779160239000,-151.0,0.00014202,2]
[422615473,1779160239000,-151.0,0.00014202,2]
[422615475,1779160239000,-14910.4099757,0.00014202,2]
[422615477,1779160239000,-150.0,0.00014237,2]
[422615476,1779160239000,-150.0,0.00014204,2]
[422615421,1779160239000,-150.0,0.00013987,2]
[422615479,1779160239000,-2351.0,0.0001424,2]
[422615474,1779160239000,-151.0,0.00014202,2]
[422615452,1779160239000,-1590.92179969,0.00014198,2]
[422615453,1779160239000,-1758.69214084,0.00014198,2]
[422615478,1779160239000,-150.0,0.00014237,2]
[422615451,1779160239000,-1878.58353823,0.00014198,2]
[422615462,1779160239000,-335.169153,0.00014202,2]
[422615435,1779160239000,-150.0,0.0001413,2]
[422615431,1779160239000,-150.0,0.00014107,2]
[422615434,1779160239000,-150.0,0.00014119,2]
[422615432,1779160239000,-33187.2102,0.00014108,2]
[422615428,1779160239000,-7508.66822284,0.00014056,2]
[422615433,1779160239000,-2000.0,0.00014108,2]
[422615427,1779160239000,-255.0,0.00014052,2]
[422615430,1779160239000,-150.0,0.00014074,2]
[422615426,1779160239000,-150.0,0.00014042,2]
[422615429,1779160239000,-500.0,0.00014073,2]
[422615438,1779160239000,-470.17,0.00014159,2]
[422615436,1779160239000,-150.0,0.00014139,2]
[422615448,1779160239000,-500.0,0.00014189,7]
[422615443,1779160239000,-500.0,0.00014189,7]
[422615461,1779160239000,-335.169153,0.00014202,2]
[422615449,1779160239000,-1051.19707315,0.00014192,2]
[422615439,1779160239000,-150.0,0.00014172,2]
[422615444,1779160239000,-500.0,0.00014189,7]
[422615447,1779160239000,-500.0,0.00014189,7]
[422615441,1779160239000,-500.0,0.00014189,7]
[422615446,1779160239000,-500.0,0.00014189,7]
[422615440,1779160239000,-500.0,0.00014189,7]
[422615442,1779160239000,-500.0,0.00014189,7]
[422615437,1779160239000,-150.0,0.00014154,2]
[422615445,1779160239000,-500.0,0.00014189,7]
[422615514,1779160240000,-150.0,0.00014563,2]
[422615512,1779160240000,-587.0,0.00014558,2]
[422615522,1779160240000,-150.0,0.00014653,2]
[422615517,1779160240000,-7508.66822284,0.00014619,2]
[422615506,1779160240000,-150.0,0.00014465,2]
[422615511,1779160240000,-150.0,0.0001453,2]
[422615513,1779160240000,-150.0,0.00014558,2]
[422615507,1779160240000,-17771.23867773,0.00014467,2]
[422615505,1779160240000,-353.32539306,0.00014452,2]
[422615521,1779160240000,-3168.0,0.00014631,5]
[422615510,1779160240000,-150.0,0.00014513,2]
[422615523,1779160240000,-150.0,0.00014661,2]
[422615516,1779160240000,-150.0,0.00014595,2]
[422615515,1779160240000,-150.0,0.00014592,2]
[422615519,1779160240000,-3135.0,0.00014631,5]
[422615520,1779160240000,-3175.0,0.00014631,5]
[422615524,1779160240000,-150.0,0.00014671,2]
[422615534,1779160240000,-326.0,0.0001476,2]
[422615528,1779160240000,-150.0,0.00014726,2]
[422615526,1779160240000,-167.84,0.00014685,2]
[422615525,1779160240000,-17771.23867773,0.00014684,2]
[422615508,1779160240000,-150.0,0.00014487,2]
[422615527,1779160240000,-150.0,0.00014693,2]
[422615518,1779160240000,-150.0,0.00014628,2]
[422615503,1779160240000,-150.0,0.00014432,2]
[422615489,1779160240000,-470.17,0.00014317,2]
[422615500,1779160240000,-150.0,0.00014367,2]
[422615535,1779160240000,-326.0,0.00014762,2]
[422615484,1779160240000,-183.44602641,0.00014247,2]
[422615483,1779160240000,-1541.0,0.00014247,2]
[422615481,1779160240000,-37092.80216134,0.00014247,2]
[422615480,1779160240000,-470.40406848,0.0001424,2]
[422615482,1779160240000,-1541.0,0.00014247,2]
[422615486,1779160240000,-150.0,0.0001427,2]
[422615496,1779160240000,-150.0090512,0.00014349,2]
[422615485,1779160240000,-17771.23867773,0.00014251,2]
[422615492,1779160240000,-150.0,0.00014335,2]
[422615494,1779160240000,-150.0,0.00014344,2]
[422615487,1779160240000,-150.0,0.00014276,2]
[422615488,1779160240000,-150.0,0.00014302,2]
[422615491,1779160240000,-470.17833181,0.00014327,2]
[422615495,1779160240000,-150.0090512,0.00014349,2]
[422615493,1779160240000,-7508.66822284,0.00014337,2]
[422615490,1779160240000,-150.0,0.0001432,2]
[422615497,1779160240000,-150.0090512,0.00014349,2]
[422615499,1779160240000,-150.0,0.00014355,2]
[422615502,1779160240000,-150.0,0.000144,2]
[422615501,1779160240000,-166.66,0.00014384,2]
[422615509,1779160240000,-150.0,0.00014498,2]
[422615504,1779160240000,-150.0,0.00014434,2]
[422615498,1779160240000,-150.0090512,0.00014349,2]
[422615529,1779160240000,-326.0,0.00014732,2]
[422615548,1779160240000,-326.0,0.00014847,2]
[422615530,1779160240000,-152.0,0.00014734,2]
[422615562,1779160240000,-16559.1287468,0.000149,3]
[422615564,1779160240000,-897.96081266,0.000149,2]
[422615563,1779160240000,-17771.23867773,0.000149,2]
[422615568,1779160240000,-150.0,0.00014921,2]
[422615569,1779160240000,-500.0,0.00014929,2]
[422615565,1779160240000,-7508.66822284,0.000149,2]
[422615567,1779160240000,-150.0,0.00014907,2]
[422615566,1779160240000,-8780.27114524,0.000149,2]
[422615570,1779160240000,-500.0,0.00014929,2]
[422615571,1779160240000,-500.0,0.00014929,2]
[422615573,1779160240000,-326.0,0.0001494,2]
[422615572,1779160240000,-326.0,0.00014931,2]
[422615574,1779160240000,-150.0,0.00014954,2]
[422615577,1779160240000,-326.0,0.0001496,2]
[422615576,1779160240000,-8633.0,0.00014959,2]
[422615575,1779160240000,-326.0,0.00014954,2]
[422615578,1779160240000,-1541.0,0.00014962,2]
[422615581,1779160240000,-250.0,0.0001498,2]
[422615579,1779160240000,-1610.81045177,0.00014962,2]
[422615580,1779160240000,-241.08335687,0.00014962,2]
[422615582,1779160240000,-326.0,0.00014981,2]
[422615583,1779160240000,-633.83062744,0.00014984,2]
[422615536,1779160240000,-150.0,0.00014772,2]
[422615560,1779160240000,-326.0,0.00014885,2]
[422615561,1779160240000,-150.0,0.00014889,2]
[422615585,1779160240000,-150.0,0.00014986,2]
[422615559,1779160240000,-326.0,0.00014878,2]
[422615532,1779160240000,-150.0,0.0001475,2]
[422615533,1779160240000,-150.0,0.00014758,2]
[422615531,1779160240000,-326.0,0.00014743,2]
[422615538,1779160240000,-150.0,0.00014791,2]
[422615584,1779160240000,-150.0,0.00014986,2]
[422615549,1779160240000,-326.0,0.00014849,2]
[422615537,1779160240000,-326.0,0.00014785,2]
[422615543,1779160240000,-150.0,0.00014829,2]
[422615545,1779160240000,-326.0,0.00014831,2]
[422615541,1779160240000,-200.0,0.00014823,2]
[422615547,1779160240000,-326.0,0.00014842,2]
[422615540,1779160240000,-326.0,0.0001482,2]
[422615542,1779160240000,-150.0,0.00014823,2]
[422615557,1779160240000,-4593.99029514,0.00014871,2]
[422615558,1779160240000,-326.0,0.00014875,2]
[422615539,1779160240000,-150.0,0.0001482,2]
[422615551,1779160240000,-326.0,0.00014855,2]
[422615555,1779160240000,-326.0,0.0001487,2]
[422615553,1779160240000,-326.0,0.00014857,2]
[422615556,1779160240000,-7905.28723818,0.00014871,2]
[422615552,1779160240000,-150.0,0.00014856,2]
[422615550,1779160240000,-326.0,0.00014853,2]
[422615544,1779160240000,-326.0,0.00014829,2]
[422615546,1779160240000,-326.0,0.00014833,2]
[422615554,1779160240000,-381.26042252,0.0001486,2]
[422615618,1779160241000,-161.96,0.00015,2]
[422615612,1779160241000,-161.96,0.00015,2]
[422615613,1779160241000,-161.96,0.00015,2]
[422615617,1779160241000,-161.96,0.00015,2]
[422615615,1779160241000,-161.96,0.00015,2]
[422615616,1779160241000,-161.96,0.00015,2]
[422615620,1779160241000,-109958.65342385,0.00015,2]
[422615619,1779160241000,-162.0,0.00015,2]
[422615611,1779160241000,-217.0,0.00015,2]
[422615630,1779160241000,-151.0,0.00015,2]
[422615623,1779160241000,-209.10498441,0.00015,2]
[422615633,1779160241000,-6837406.02662454,0.00015,2]
[422615624,1779160241000,-1785743.99268983,0.00015,2]
[422615632,1779160241000,-151.0,0.00015,2]
[422615621,1779160241000,-1000.0,0.00015,2]
[422615625,1779160241000,-153.374982,0.00015,2]
[422615626,1779160241000,-1000.0,0.00015,2]
[422615629,1779160241000,-151.0,0.00015,2]
[422615627,1779160241000,-1000.0,0.00015,2]
[422615614,1779160241000,-161.96,0.00015,2]